bitfinex-derivatives/quotes_BNBF0:USTF0_20260114
["timestamp","ask_amount","ask_price","bid_price","bid_amount"]
[1768431256122,0.63837978,945.78,943.89,2.61510079]
[1768431256322,0.63837978,945.77,943.89,2.61510079]
[1768431256522,0.63837978,945.76,943.89,2.61510079]
[1768431256723,0.63837978,945.75,944.35,0.18404957]
[1768431257019,0.63837978,945.74,944.35,0.18404957]
[1768431257220,0.63837978,945.73,944.35,0.18404957]
[1768431257420,0.63837978,945.72,944.35,0.18404957]
[1768431257620,0.63837978,945.71,944.35,0.18404957]
[1768431257821,0.63837978,945.7,944.35,0.18404957]
[1768431258024,0.63837978,945.69,944.35,0.18404957]
[1768431258219,0.63837978,945.68,944.35,0.18404957]
[1768431258425,0.63837978,945.67,944.35,0.18404957]
[1768431258626,0.63837978,945.66,944.35,0.18404957]
[1768431258824,0.63837978,945.65,944.35,0.18404957]
[1768431259021,1.775,945.85,944.35,0.18404957]
[1768431259325,0.63858498,945.84,944.35,0.18404957]
[1768431259526,0.63858498,945.83,944.35,0.18404957]
[1768431259726,0.63858498,945.82,944.35,0.18404957]
[1768431260026,0.63858498,945.81,944.35,0.18404957]
[1768431260222,0.63858498,945.8,944.35,0.18404957]
[1768431260425,0.63858498,945.79,944.35,0.18404957]
[1768431260622,0.63858498,945.78,944.35,0.18404957]
[1768431260824,0.63858498,945.77,944.35,0.18404957]
[1768431261125,1.775,945.85,944.35,0.18404957]
[1768431261126,0.63858498,945.76,944.35,0.18404957]
[1768431261326,0.63858498,945.75,944.35,0.18404957]
[1768431261526,0.63858498,945.74,944.35,0.18404957]
[1768431261722,0.63858498,945.73,944.35,0.18404957]
[1768431261926,0.63858498,945.72,944.35,0.18404957]
[1768431262124,0.63858498,945.71,944.35,0.18404957]
[1768431262323,0.63858498,945.7,944.35,0.18404957]
[1768431262627,0.63858498,945.69,944.35,0.18404957]
[1768431262827,0.63858498,945.68,944.35,0.18404957]
[1768431263025,0.63858498,945.67,944.35,0.18404957]
[1768431263228,0.63858498,945.66,944.35,0.18404957]
[1768431263430,0.63858498,945.65,944.35,0.18404957]
[1768431263729,0.63858498,945.64,944.35,0.18404957]
[1768431263929,0.63858498,945.63,944.35,0.18404957]
[1768431264128,0.63858498,945.62,944.35,0.18404957]
[1768431264328,0.63858498,945.61,944.35,0.18404957]
[1768431264628,0.63858498,945.6,944.35,0.18404957]
[1768431264825,0.63858498,945.59,944.35,0.18404957]
[1768431265026,0.63858498,945.58,944.35,0.18404957]
[1768431265227,0.63858498,945.57,944.35,0.18404957]
[1768431265426,0.63858498,945.56,944.35,0.18404957]
[1768431265631,0.63858498,945.55,944.35,0.18404957]
[1768431265826,0.63858498,945.54,944.35,0.18404957]
[1768431266130,0.63858498,945.53,944.35,0.18404957]
[1768431266328,0.63858498,945.52,944.35,0.18404957]
[1768431266528,0.63858498,945.51,944.35,0.18404957]
[1768431266728,0.63858498,945.5,944.35,0.18404957]
[1768431266932,0.63858498,945.49,944.35,0.18404957]
[1768431267231,0.63858498,945.48,944.35,0.18404957]
[1768431267434,0.63858498,945.47,944.35,0.18404957]
[1768431267732,0.63858498,945.46,944.35,0.18404957]
[1768431267931,0.63858498,945.45,944.35,0.18404957]
[1768431268132,0.63858498,945.44,944.35,0.18404957]
[1768431268328,0.63858498,945.43,944.35,0.18404957]
[1768431268632,0.63858498,945.42,944.35,0.18404957]
[1768431268834,0.63858498,945.41,944.35,0.18404957]
[1768431269034,0.63858498,945.4,944.35,0.18404957]
[1768431269233,0.63858498,945.39,944.35,0.18404957]
[1768431269534,1.775,945.85,944.35,0.18404957]
[1768431269730,0.63799755,945.84,944.35,0.18404957]
[1768431270030,0.63799755,945.83,944.35,0.18404957]
[1768431270334,0.63799755,945.82,944.35,0.18404957]
[1768431270536,0.63799755,945.81,944.35,0.18404957]
[1768431270736,0.63799755,945.8,944.35,0.18404957]
[1768431270936,0.63799755,945.79,944.35,0.18404957]
[1768431271134,0.63799755,945.78,944.35,0.18404957]
[1768431271434,0.63799755,945.77,944.35,0.18404957]
[1768431271636,0.63799755,945.76,944.35,0.18404957]
[1768431271835,0.63799755,945.75,944.35,0.18404957]
[1768431272031,0.63799755,945.74,944.35,0.18404957]
[1768431272235,0.63799755,945.73,944.35,0.18404957]
[1768431272432,0.63799755,945.72,944.35,0.18404957]
[1768431272633,0.63799755,945.71,944.35,0.18404957]
[1768431272836,0.63799755,945.7,944.35,0.18404957]
[1768431273032,1.775,945.85,944.35,0.18404957]
[1768431273033,0.63799755,945.69,944.35,0.18404957]
[1768431273337,0.63799755,945.68,944.35,0.18404957]
[1768431273537,0.63799755,945.67,944.35,0.18404957]
[1768431273734,0.63799755,945.66,944.35,0.18404957]
[1768431273937,0.63799755,945.65,944.35,0.18404957]
[1768431274140,0.63799755,945.64,944.35,0.18404957]
[1768431274438,0.63799755,945.63,944.35,0.18404957]
[1768431274734,0.63799755,945.62,944.35,0.18404957]
[1768431274935,0.63799755,945.61,944.35,0.18404957]
[1768431275138,0.63799755,945.6,944.35,0.18404957]
[1768431275435,0.63799755,945.59,944.35,0.18404957]
[1768431275635,0.63799755,945.58,944.35,0.18404957]
[1768431275938,0.63799755,945.57,944.35,0.18404957]
[1768431276137,0.63799755,945.56,944.35,0.18404957]
[1768431276438,0.63799755,945.55,944.35,0.18404957]
[1768431276639,0.63799755,945.54,944.35,0.18404957]
[1768431276839,0.63799755,945.53,944.35,0.18404957]
[1768431277038,0.63799755,945.52,944.35,0.18404957]
[1768431277238,0.63799755,945.51,944.35,0.18404957]
[1768431277436,0.63799755,945.5,944.35,0.18404957]
[1768431277635,0.63799755,945.49,944.35,0.18404957]
[1768431277836,0.63799755,945.48,944.35,0.18404957]
[1768431278038,0.63799755,945.47,944.35,0.18404957]
[1768431278239,0.63799755,945.46,944.35,0.18404957]
[1768431278441,0.63799755,945.45,944.35,0.18404957]
[1768431278635,0.63799755,945.44,944.35,0.18404957]
[1768431278837,0.63799755,945.43,944.35,0.18404957]
[1768431279042,0.63799755,945.42,944.35,0.18404957]
[1768431279238,0.63799755,945.41,944.35,0.18404957]
[1768431279537,0.63799755,945.4,944.35,0.18404957]
[1768431279838,0.63799755,945.39,944.35,0.18404957]
[1768431280037,0.63799755,945.38,944.35,0.18404957]
[1768431280236,0.63799755,945.37,944.35,0.18404957]
[1768431280437,0.63799755,945.36,944.35,0.18404957]
[1768431280640,0.63799755,945.35,944.35,0.18404957]
[1768431280836,0.63799755,945.34,944.35,0.18404957]
[1768431281041,2.281,945.38,944.35,0.18404957]
[1768431281239,0.64072318,945.37,944.35,0.18404957]
[1768431281443,0.64072318,945.36,944.35,0.18404957]
[1768431281644,0.64072318,945.35,944.35,0.18404957]
[1768431281943,0.64072318,945.34,944.35,0.18404957]
[1768431282244,2.281,945.38,944.35,0.18404957]
[1768431282444,0.64066781,945.37,944.35,0.18404957]
[1768431282645,0.64066781,945.36,944.35,0.18404957]
[1768431282940,0.64066781,945.35,944.35,0.18404957]
[1768431283145,2.281,945.38,944.35,0.18404957]
[1768431283345,0.64065044,945.37,944.35,0.18404957]
[1768431283545,0.64065044,945.36,944.35,0.18404957]
[1768431283745,2.281,945.38,944.35,0.18404957]
[1768431283746,0.64065044,945.35,944.35,0.18404957]
[1768431284044,2.281,945.38,944.35,0.18404957]
[1768431284242,0.64065456,945.37,944.35,0.18404957]
[1768431284445,0.64065456,945.36,944.35,0.18404957]
[1768431284644,0.64065456,945.35,944.35,0.18404957]
[1768431284841,2.281,945.38,944.35,0.18404957]
[1768431285042,0.64064113,945.37,944.35,0.18404957]
[1768431285244,0.64064113,945.36,944.35,0.18404957]
[1768431285540,0.64064113,945.35,944.35,0.18404957]
[1768431285745,2.281,945.38,944.35,0.18404957]
[1768431286045,0.64063036,945.37,944.35,0.18404957]
[1768431286246,0.64063036,945.36,944.35,0.18404957]
[1768431286542,0.64063036,945.35,944.35,0.18404957]
[1768431286744,2.281,945.38,944.35,0.18404957]
[1768431287042,0.64063462,945.37,944.35,0.18404957]
[1768431287240,0.64063462,945.36,944.35,0.18404957]
[1768431287441,0.64063462,945.35,944.35,0.18404957]
[1768431287640,2.281,945.38,944.35,0.18404957]
[1768431287842,0.6406467,945.37,944.35,0.18404957]
[1768431288042,0.6406467,945.36,944.35,0.18404957]
[1768431288243,0.6406467,945.35,944.35,0.18404957]
[1768431288546,2.281,945.38,944.35,0.18404957]
[1768431288745,0.64066808,945.37,944.35,0.18404957]
[1768431288944,0.64066808,945.36,944.35,0.18404957]
[1768431289148,0.64066808,945.35,944.35,0.18404957]
[1768431289346,0.64066808,945.34,944.35,0.18404957]
[1768431289550,2.281,945.38,944.35,0.18404957]
[1768431289751,0.64069704,945.37,944.35,0.18404957]
[1768431289948,0.64069704,945.36,944.35,0.18404957]
[1768431290146,0.64069704,945.35,944.35,0.18404957]
[1768431290446,0.64069704,945.34,944.35,0.18404957]
[1768431290646,2.281,945.38,943.46,2.61510079]
[1768431290847,0.64073528,945.37,944.25,0.18412601]
[1768431291045,0.64073528,945.36,943.46,2.61510079]
[1768431291249,0.64073528,945.35,943.46,2.61510079]
[1768431291450,0.64073528,945.34,944.24,0.18412552]
[1768431291647,2.281,945.38,943.46,2.61510079]
[1768431291854,0.64078243,945.37,943.46,2.61510079]
[1768431292054,0.64078243,945.36,943.46,2.61510079]
[1768431292255,0.64078243,945.35,943.46,2.61510079]
[1768431292452,0.64078243,945.34,943.46,2.61510079]
[1768431292654,2.281,945.38,943.46,2.61510079]
[1768431292851,0.64083886,945.37,943.93,0.18412601]
[1768431293155,0.64083886,945.36,943.93,0.18412601]
[1768431293454,0.64083886,945.35,943.93,0.18412601]
[1768431293654,0.64083886,945.34,943.93,0.18412601]
[1768431293852,0.64083886,945.33,943.93,0.18412601]
[1768431294056,2.281,945.38,943.93,0.18412601]
[1768431294352,0.64090584,945.37,943.93,0.18412601]
[1768431294653,0.64090584,945.36,943.93,0.18412601]
[1768431294853,0.64090584,945.35,943.93,0.18412601]
[1768431295051,0.64090584,945.34,943.93,0.18412601]
[1768431295254,0.64090584,945.33,943.93,0.18412601]
[1768431295452,0.64090584,945.32,943.93,0.18412601]
[1768431295654,0.18404957,946.19,943.93,0.18412601]
[1768431295854,0.64107207,946.18,943.93,0.18412601]
[1768431296154,0.64107207,946.17,943.93,0.18412601]
[1768431296352,0.64107207,946.16,943.93,0.18412601]
[1768431296551,0.64107207,946.15,943.93,0.18412601]
[1768431296855,0.64107207,946.14,943.93,0.18412601]
[1768431297055,0.64107207,946.13,943.93,0.18412601]
[1768431297255,0.64107207,946.12,943.93,0.18412601]
[1768431297455,0.64107207,946.11,943.93,0.18412601]
[1768431297656,0.64107207,946.1,943.93,0.18412601]
[1768431297857,0.64107207,946.09,943.93,0.18412601]
[1768431298055,0.64107207,946.08,943.93,0.18412601]
[1768431298353,0.64107207,946.07,943.93,0.18412601]
[1768431298553,0.64107207,946.06,943.93,0.18412601]
[1768431298856,0.64107207,946.05,943.93,0.18412601]
[1768431299056,0.64107207,946.04,943.93,0.18412601]
[1768431299252,0.64107207,946.03,943.93,0.18412601]
[1768431299556,0.64107207,946.02,943.93,0.18412601]
[1768431299750,0.64107207,946.01,943.93,0.18412601]
[1768431299956,0.64107207,946.0,943.93,0.18412601]
[1768431300252,0.64107207,945.99,943.93,0.18412601]
[1768431300451,0.64107207,945.98,943.93,0.18412601]
[1768431300657,0.64107207,945.97,943.93,0.18412601]
[1768431300852,0.64107207,945.96,943.93,0.18412601]
[1768431301054,0.64107207,945.95,943.93,0.18412601]
[1768431301254,0.64107207,945.94,943.93,0.18412601]
[1768431301454,0.64107207,945.93,943.93,0.18412601]
[1768431301655,0.64107207,945.92,943.93,0.18412601]
[1768431301856,0.64107207,945.91,943.93,0.18412601]
[1768431302053,5.72463367,946.05,943.93,0.18412601]
[1768431302054,0.64107207,945.9,943.93,0.18412601]
[1768431302250,0.64107207,945.89,943.93,0.18412601]
[1768431302451,0.64107207,945.88,943.93,0.18412601]
[1768431302651,0.64107207,945.87,943.93,0.18412601]
[1768431302855,0.64107207,945.86,943.93,0.18412601]
[1768431303057,0.64107207,945.85,943.93,0.18412601]
[1768431303357,0.64107207,945.84,943.93,0.18412601]
[1768431303554,0.64107207,945.83,943.93,0.18412601]
[1768431303757,0.64107207,945.82,943.93,0.18412601]
[1768431303954,0.64107207,945.81,943.93,0.18412601]
[1768431304255,0.64107207,945.8,943.93,0.18412601]
[1768431304457,0.64107207,945.79,943.93,0.18412601]
[1768431304657,0.64107207,945.78,943.93,0.18412601]
[1768431304857,0.64107207,945.77,943.93,0.18412601]
[1768431305058,0.64107207,945.76,943.93,0.18412601]
[1768431305258,0.64107207,945.75,943.93,0.18412601]
[1768431305456,0.64107207,945.74,943.93,0.18412601]
[1768431305656,0.64107207,945.73,943.93,0.18412601]
[1768431305860,0.64107207,945.72,943.93,0.18412601]
[1768431306060,0.64107207,945.71,943.93,0.18412601]
[1768431306361,0.64107207,945.7,943.93,0.18412601]
[1768431306557,0.64107207,945.69,943.93,0.18412601]
[1768431306761,0.64107207,945.68,943.93,0.18412601]
[1768431306961,0.64107207,945.67,943.93,0.18412601]
[1768431307158,0.64107207,945.66,943.93,0.18412601]
[1768431307458,0.64107207,945.65,943.93,0.18412601]
[1768431307662,0.64107207,945.64,943.93,0.18412601]
[1768431307863,0.64107207,945.63,943.93,0.18412601]
[1768431308064,0.64107207,945.62,943.93,0.18412601]
[1768431308257,0.64107207,945.61,943.93,0.18412601]
[1768431308461,0.64107207,945.6,943.93,0.18412601]
[1768431308660,0.64107207,945.59,943.93,0.18412601]
[1768431308860,0.64107207,945.58,943.93,0.18412601]
[1768431309060,5.72463367,946.05,943.93,0.18412601]
[1768431309061,0.64107207,945.57,943.93,0.18412601]
[1768431309362,0.64107207,945.56,943.93,0.18412601]
[1768431309563,0.64107207,945.55,943.93,0.18412601]
[1768431309764,0.64107207,945.54,943.93,0.18412601]
[1768431309963,0.64107207,945.53,943.93,0.18412601]
[1768431310164,0.64107207,945.52,943.93,0.18412601]
[1768431310464,0.64107207,945.51,943.93,0.18412601]
[1768431310664,0.64107207,945.5,943.93,0.18412601]
[1768431310866,0.64107207,945.49,943.93,0.18412601]
[1768431311065,0.64107207,945.48,943.93,0.18412601]
[1768431311261,0.64107207,945.47,943.93,0.18412601]
[1768431311466,5.72463367,946.05,943.93,0.18412601]
[1768431311467,0.64107207,945.46,943.93,0.18412601]
[1768431311667,0.64107207,945.45,943.93,0.18412601]
[1768431311866,0.64107207,945.44,943.93,0.18412601]
[1768431312061,0.64107207,945.43,943.93,0.18412601]
[1768431312263,0.64107207,945.42,943.93,0.18412601]
[1768431312567,0.64107207,945.41,943.93,0.18412601]
[1768431312768,0.64107207,945.4,943.93,0.18412601]
[1768431312966,0.64107207,945.39,943.93,0.18412601]
[1768431313163,0.64107207,945.38,943.93,0.18412601]
[1768431313462,0.64107207,945.37,943.93,0.18412601]
[1768431313663,0.64107207,945.36,943.93,0.18412601]
[1768431313863,0.64107207,945.35,943.93,0.18412601]
[1768431314063,0.64107207,945.34,943.93,0.18412601]
[1768431314263,0.64107207,945.33,943.93,0.18412601]
[1768431314467,0.64107207,945.32,943.93,0.18412601]
[1768431314765,0.64107207,945.31,943.93,0.18412601]
[1768431315069,0.64107207,945.3,943.93,0.18412601]
[1768431315267,0.64107207,945.29,943.93,0.18412601]
[1768431315469,0.64107207,945.28,943.93,0.18412601]
[1768431315668,2.131,945.33,943.93,0.18412601]
[1768431315669,0.64107207,945.27,943.93,0.18412601]
[1768431315867,0.64107207,945.26,943.93,0.18412601]
[1768431316068,0.64107207,945.25,943.93,0.18412601]
[1768431316267,0.64107207,945.24,943.93,0.18412601]
[1768431316467,0.64107207,945.23,943.93,0.18412601]
[1768431316671,0.64107207,945.22,943.93,0.18412601]
[1768431316968,0.64107207,945.21,943.93,0.18412601]
[1768431317273,0.64107207,945.2,943.93,0.18412601]
[1768431317571,0.64107207,945.19,943.93,0.18412601]
[1768431317768,0.64107207,945.18,943.93,0.18412601]
[1768431317967,0.64107207,945.17,943.93,0.18412601]
[1768431318172,0.64107207,945.16,943.93,0.18412601]
[1768431318469,0.64107207,945.15,943.93,0.18412601]
[1768431318672,0.64107207,945.14,943.93,0.18412601]
[1768431318870,2.131,945.33,943.93,0.18412601]
[1768431319074,0.64421441,945.32,943.93,0.18412601]
[1768431319271,0.64421441,945.31,943.93,0.18412601]
[1768431319569,0.64421441,945.3,943.93,0.18412601]
[1768431319770,0.64421441,945.29,943.93,0.18412601]
[1768431319969,0.64421441,945.28,943.93,0.18412601]
[1768431320167,0.64421441,945.27,943.93,0.18412601]
[1768431320469,0.64421441,945.26,943.93,0.18412601]
[1768431320766,2.131,945.33,943.93,0.18412601]
[1768431320767,0.64421441,945.25,943.93,0.18412601]
[1768431320966,0.64421441,945.24,943.93,0.18412601]
[1768431321168,0.64421441,945.23,943.93,0.18412601]
[1768431321371,0.64421441,945.22,943.93,0.18412601]
[1768431321572,0.64421441,945.21,943.93,0.18412601]
[1768431321770,0.64421441,945.2,943.93,0.18412601]
[1768431321970,0.64421441,945.19,943.93,0.18412601]
[1768431322169,0.64421441,945.18,943.93,0.18412601]
[1768431322371,0.64421441,945.17,943.93,0.18412601]
[1768431322568,0.64421441,945.16,943.93,0.18412601]
[1768431322773,0.64421441,945.15,943.93,0.18412601]
[1768431322973,0.64421441,945.14,943.93,0.18412601]
[1768431323175,2.131,945.33,943.93,0.18412601]
[1768431323369,0.64418976,945.32,943.93,0.18412601]
[1768431323569,0.64418976,945.31,943.93,0.18412601]
[1768431323773,0.64418976,945.3,943.93,0.18412601]
[1768431323982,0.64418976,945.29,943.93,0.18412601]
[1768431324171,0.64418976,945.28,943.93,0.18412601]
[1768431324474,0.64418976,945.27,943.93,0.18412601]
[1768431324770,0.64418976,945.26,943.93,0.18412601]
[1768431324972,0.64418976,945.25,943.93,0.18412601]
[1768431325175,0.64418976,945.24,943.93,0.18412601]
[1768431325475,0.64418976,945.23,943.93,0.18412601]
[1768431325674,2.131,945.33,943.93,0.18412601]
[1768431325675,0.64418976,945.22,943.93,0.18412601]
[1768431325875,0.64418976,945.21,943.93,0.18412601]
[1768431326071,0.64418976,945.2,943.93,0.18412601]
[1768431326276,0.64418976,945.19,943.93,0.18412601]
[1768431326471,0.64418976,945.18,943.93,0.18412601]
[1768431326672,0.64418976,945.17,943.93,0.18412601]
[1768431326874,0.64418976,945.16,943.93,0.18412601]
[1768431327076,0.64418976,945.15,943.93,0.18412601]
[1768431327375,2.131,945.33,943.93,0.18412601]
[1768431327572,0.64418671,945.32,943.93,0.18412601]
[1768431327773,0.64418671,945.31,943.93,0.18412601]
[1768431327976,0.64418671,945.3,943.93,0.18412601]
[1768431328177,0.64418671,945.29,943.93,0.18412601]
[1768431328376,0.64418671,945.28,943.93,0.18412601]
[1768431328577,0.64418671,945.27,943.93,0.18412601]
[1768431328877,0.64418671,945.26,943.93,0.18412601]
[1768431329079,0.64418671,945.25,943.93,0.18412601]
[1768431329275,0.64418671,945.24,943.93,0.18412601]
[1768431329479,0.64418671,945.23,943.93,0.18412601]
[1768431329776,0.64418671,945.22,943.93,0.18412601]
[1768431329980,0.64418671,945.21,943.93,0.18412601]
[1768431330176,0.64418671,945.2,943.93,0.18412601]
[1768431330377,0.64418671,945.19,943.93,0.18412601]
[1768431330680,0.64418671,945.18,943.93,0.18412601]
[1768431330981,0.64418671,945.17,943.93,0.18412601]
[1768431331182,0.64418671,945.16,943.93,0.18412601]
[1768431331380,2.131,945.33,943.93,0.18412601]
[1768431331581,0.643923,945.32,943.93,0.18412601]
[1768431331779,0.643923,945.31,943.93,0.18412601]
[1768431332081,0.643923,945.3,943.93,0.18412601]
[1768431332281,0.643923,945.29,943.93,0.18412601]
[1768431332480,0.643923,945.28,943.93,0.18412601]
[1768431332781,0.643923,945.27,943.93,0.18412601]
[1768431332978,0.643923,945.26,943.93,0.18412601]
[1768431333180,0.643923,945.25,943.93,0.18412601]
[1768431333382,0.643923,945.24,943.93,0.18412601]
[1768431333580,0.643923,945.23,943.93,0.18412601]
[1768431333782,0.643923,945.22,943.93,0.18412601]
[1768431333982,0.643923,945.21,943.93,0.18412601]
[1768431334280,0.643923,945.2,943.93,0.18412601]
[1768431334483,0.643923,945.19,943.93,0.18412601]
[1768431334681,0.643923,945.18,943.93,0.18412601]
[1768431334983,0.643923,945.17,943.93,0.18412601]
[1768431335180,0.643923,945.16,943.93,0.18412601]
[1768431335480,2.131,945.33,943.93,0.18412601]
[1768431335683,0.64294649,945.32,943.93,0.18412601]
[1768431335983,0.64294649,945.31,943.93,0.18412601]
[1768431336283,0.64294649,945.3,943.93,0.18412601]
[1768431336482,0.64294649,945.29,943.93,0.18412601]
[1768431336682,2.131,945.33,943.93,0.18412601]
[1768431336683,0.64294649,945.28,943.93,0.18412601]
[1768431336981,0.64294649,945.27,943.93,0.18412601]
[1768431337180,0.64294649,945.26,943.93,0.18412601]
[1768431337379,2.131,945.33,943.93,0.18412601]
[1768431337380,0.64294649,945.25,943.93,0.18412601]
[1768431337581,0.64294649,945.24,943.93,0.18412601]
[1768431337786,0.64294649,945.23,943.93,0.18412601]
[1768431338080,0.64294649,945.22,943.93,0.18412601]
[1768431338281,0.64294649,945.21,943.93,0.18412601]
[1768431338480,0.64294649,945.2,943.93,0.18412601]
[1768431338684,0.64294649,945.19,943.93,0.18412601]
[1768431338886,0.64294649,945.18,943.93,0.18412601]
[1768431339081,0.64294649,945.17,943.93,0.18412601]
[1768431339286,2.131,945.33,943.93,0.18412601]
[1768431339581,0.6429558,945.32,943.93,0.18412601]
[1768431339787,0.6429558,945.31,943.93,0.18412601]
[1768431339985,0.6429558,945.3,943.93,0.18412601]
[1768431340185,0.6429558,945.29,943.93,0.18412601]
[1768431340385,2.131,945.33,943.93,0.18412601]
[1768431340582,0.64273135,945.32,943.93,0.18412601]
[1768431340785,0.64273135,945.31,943.93,0.18412601]
[1768431341085,0.64273135,945.3,943.93,0.18412601]
[1768431341285,2.131,945.33,943.93,0.18412601]
[1768431341482,0.64253186,945.32,943.93,0.18412601]
[1768431341682,0.64253186,945.31,943.93,0.18412601]
[1768431341985,2.131,945.33,943.93,0.18412601]
[1768431342185,0.64253661,945.32,943.93,0.18412601]
[1768431342386,2.131,945.33,943.93,0.18412601]
[1768431344585,5.72463367,946.05,943.93,0.18412601]
[1768431344786,0.64209877,946.04,943.93,0.18412601]
[1768431344982,0.64209877,946.03,943.93,0.18412601]
[1768431345184,0.64209877,946.02,943.93,0.18412601]
[1768431345385,0.64209877,946.01,943.93,0.18412601]
[1768431345585,0.64209877,946.0,943.93,0.18412601]
[1768431345785,0.64209877,945.99,943.93,0.18412601]
[1768431345986,0.64209877,945.98,943.93,0.18412601]
[1768431346184,0.64209877,945.97,943.93,0.18412601]
[1768431346387,0.64209877,945.96,943.93,0.18412601]
[1768431346588,0.64209877,945.95,943.93,0.18412601]
[1768431346789,0.64209877,945.94,943.93,0.18412601]
[1768431346989,0.64209877,945.93,943.93,0.18412601]
[1768431347190,0.64209877,945.92,943.93,0.18412601]
[1768431347390,0.64209877,945.91,943.93,0.18412601]
[1768431347588,0.64209877,945.9,943.93,0.18412601]
[1768431347887,0.64209877,945.89,943.93,0.18412601]
[1768431348092,0.64209877,945.88,943.93,0.18412601]
[1768431348292,0.64209877,945.87,943.93,0.18412601]
[1768431348488,0.64209877,945.86,943.93,0.18412601]
[1768431348692,0.64209877,945.85,943.93,0.18412601]
[1768431348893,0.64209877,945.84,943.93,0.18412601]
[1768431349094,0.64209877,945.83,943.93,0.18412601]
[1768431349290,0.64209877,945.82,943.93,0.18412601]
[1768431349490,0.64209877,945.81,943.93,0.18412601]
[1768431349690,0.64209877,945.8,943.93,0.18412601]
[1768431349890,0.64209877,945.79,943.93,0.18412601]
[1768431350095,0.64209877,945.78,943.93,0.18412601]
[1768431350292,0.64209877,945.77,943.93,0.18412601]
[1768431350497,0.64209877,945.76,943.93,0.18412601]
[1768431350796,0.64209877,945.75,943.93,0.18412601]
[1768431350998,0.64209877,945.74,943.93,0.18412601]
[1768431351193,0.64209877,945.73,943.93,0.18412601]
[1768431351395,0.64209877,945.72,943.93,0.18412601]
[1768431351596,0.64209877,945.71,943.93,0.18412601]
[1768431351798,0.64209877,945.7,943.93,0.18412601]
[1768431351998,0.64209877,945.69,943.93,0.18412601]
[1768431352197,0.64209877,945.68,943.93,0.18412601]
[1768431352398,0.64209877,945.67,943.93,0.18412601]
[1768431352598,0.64209877,945.66,943.93,0.18412601]
[1768431352796,0.64209877,945.65,943.93,0.18412601]
[1768431353000,0.64209877,945.64,943.93,0.18412601]
[1768431353199,0.64209877,945.63,943.93,0.18412601]
[1768431353398,0.64209877,945.62,943.93,0.18412601]
[1768431353597,0.64209877,945.61,943.93,0.18412601]
[1768431353802,0.64209877,945.6,943.93,0.18412601]
[1768431354101,0.64209877,945.59,943.93,0.18412601]
[1768431354298,0.64209877,945.58,943.93,0.18412601]
[1768431354503,0.64209877,945.57,943.93,0.18412601]
[1768431354698,0.64209877,945.56,943.93,0.18412601]
[1768431354900,0.64209877,945.55,943.93,0.18412601]
[1768431355100,0.64209877,945.54,943.93,0.18412601]
[1768431355302,0.64209877,945.53,943.93,0.18412601]
[1768431355602,0.64209877,945.52,943.93,0.18412601]
[1768431355798,0.64209877,945.51,943.93,0.18412601]
[1768431356001,0.64209877,945.5,943.93,0.18412601]
[1768431356201,0.64209877,945.49,943.93,0.18412601]
[1768431356401,0.64209877,945.48,943.93,0.18412601]
[1768431356602,0.64209877,945.47,943.93,0.18412601]
[1768431356805,0.64209877,945.46,943.93,0.18412601]
[1768431357102,0.64209877,945.45,943.93,0.18412601]
[1768431357303,0.64209877,945.44,943.93,0.18412601]
[1768431357505,0.64209877,945.43,943.93,0.18412601]
[1768431357706,0.64209877,945.42,943.93,0.18412601]
[1768431357907,0.64209877,945.41,943.93,0.18412601]
[1768431358106,0.64209877,945.4,943.93,0.18412601]
[1768431358300,0.64209877,945.39,943.93,0.18412601]
[1768431358501,0.64209877,945.38,943.93,0.18412601]
[1768431358706,0.64209877,945.37,943.93,0.18412601]
[1768431359001,0.64209877,945.36,943.93,0.18412601]
[1768431359202,0.64209877,945.35,943.93,0.18412601]
[1768431359406,0.64209877,945.34,943.93,0.18412601]
[1768431359606,0.64209877,945.33,943.93,0.18412601]
[1768431359803,0.64209877,945.32,943.93,0.18412601]
[1768431360006,0.64209877,945.31,943.93,0.18412601]
[1768431360206,0.64209877,945.3,943.93,0.18412601]
[1768431360402,0.64209877,945.29,943.93,0.18412601]
[1768431360603,0.64209877,945.28,943.93,0.18412601]
[1768431360903,0.64209877,945.27,943.93,0.18412601]
[1768431361104,0.64209877,945.26,943.93,0.18412601]
[1768431361307,0.64209877,945.25,943.93,0.18412601]
[1768431361604,0.64209877,945.24,943.93,0.18412601]
[1768431361805,0.64209877,945.23,943.93,0.18412601]
[1768431362006,0.64209877,945.22,943.93,0.18412601]
[1768431362208,0.64209877,945.21,943.93,0.18412601]
[1768431362406,0.64209877,945.2,943.93,0.18412601]
[1768431362706,5.72463367,946.05,943.93,0.18412601]
[1768431363005,0.64109686,946.04,943.93,0.18412601]
[1768431363308,0.64109686,946.03,943.93,0.18412601]
[1768431363505,0.64109686,946.02,943.93,0.18412601]
[1768431363707,0.64109686,946.01,943.93,0.18412601]
[1768431363910,0.64109686,946.0,943.93,0.18412601]
[1768431364105,0.64109686,945.99,943.93,0.18412601]
[1768431364306,0.64109686,945.98,943.93,0.18412601]
[1768431364505,0.64109686,945.97,943.93,0.18412601]
[1768431364704,0.64109686,945.96,943.93,0.18412601]
[1768431365008,2.96809686,945.95,943.93,0.18412601]